[Event "Early-Titled-Tuesday-Blitz-October-10-2023"]
[Site "Chess.com"]
[Date "2023.10.10"]
[Round "4"]
[White "karwowskikacper"]
[Black "ActorXu"]
[Result "0-1"]
[WhiteElo "2534"]
[BlackElo "2736"]
[TimeControl "180+1"]
[EndTime "8:38:10 PDT"]
[Termination "ActorXu won by resignation"]

1. e4 {[%clk 0:02:58.9]} 1... c5 {[%clk 0:02:59.5]} 2. Nf3 {[%clk 0:02:57.8]}
2... Nc6 {[%clk 0:02:58.1]} 3. d4 {[%clk 0:02:57.1]} 3... cxd4 {[%clk 0:02:58]}
4. Nxd4 {[%clk 0:02:58]} 4... Nf6 {[%clk 0:02:58.2]} 5. Nc3 {[%clk 0:02:57.1]}
5... e6 {[%clk 0:02:58.7]} 6. Ndb5 {[%clk 0:02:52.6]} 6... Bc5 {[%clk
0:02:57.5]} 7. Bf4 {[%clk 0:02:46.1]} 7... O-O {[%clk 0:02:56.7]} 8. Bd6 {[%clk
0:02:42.8]} 8... Qb6 {[%clk 0:02:53.8]} 9. Bxc5 {[%clk 0:02:42.3]} 9... Qxc5
{[%clk 0:02:53.6]} 10. Qd6 {[%clk 0:02:43]} 10... Qb6 {[%clk 0:02:53.4]} 11. Qc7
{[%clk 0:02:42.9]} 11... Qc5 {[%clk 0:02:49.3]} 12. Qd6 {[%clk 0:02:42.8]} 12...
Qb6 {[%clk 0:02:46.3]} 13. Qc7 {[%clk 0:02:42.7]} 13... Qxc7 {[%clk 0:02:42.1]}
14. Nxc7 {[%clk 0:02:42.5]} 14... Rb8 {[%clk 0:02:42.8]} 15. N7b5 {[%clk
0:02:39.4]} 15... d5 {[%clk 0:02:40.4]} 16. exd5 {[%clk 0:02:36.8]} 16... exd5
{[%clk 0:02:40.3]} 17. O-O-O {[%clk 0:02:36.4]} 17... a6 {[%clk 0:02:40.2]} 18.
Nd4 {[%clk 0:02:35.2]} 18... Ng4 {[%clk 0:02:37.8]} 19. Nxc6 {[%clk 0:02:04]}
19... bxc6 {[%clk 0:02:31.3]} 20. Rd2 {[%clk 0:02:04.5]} 20... Re8 {[%clk
0:02:24.7]} 21. Bd3 {[%clk 0:02:01.7]} 21... a5 {[%clk 0:02:21.8]} 22. h3 {[%clk
0:01:54.2]} 22... Ne5 {[%clk 0:02:21.5]} 23. Na4 {[%clk 0:01:50.3]} 23... Kf8
{[%clk 0:02:13.1]} 24. Rhd1 {[%clk 0:01:38.2]} 24... Ke7 {[%clk 0:02:12.4]} 25.
f4 {[%clk 0:01:34.4]} 25... Nxd3+ {[%clk 0:02:08.5]} 26. cxd3 {[%clk 0:01:35.3]}
26... Kd6 {[%clk 0:02:05]} 27. d4 {[%clk 0:01:35.2]} 27... Bf5 {[%clk
0:01:53.9]} 28. Nc5 {[%clk 0:01:33.3]} 28... Re3 {[%clk 0:01:53.3]} 29. b3
{[%clk 0:01:17.8]} 29... h5 {[%clk 0:01:46.8]} 30. Kb2 {[%clk 0:01:05.8]} 30...
h4 {[%clk 0:01:46.8]} 31. Rc1 {[%clk 0:01:05.2]} 31... Rbe8 {[%clk 0:01:32]} 32.
Nb7+ {[%clk 0:01:03.7]} 32... Kd7 {[%clk 0:01:31.7]} 33. Nxa5 {[%clk 0:01:04]}
33... Re2 {[%clk 0:01:31.6]} 34. Rd1 {[%clk 0:00:55.9]} 34... Kc7 {[%clk
0:01:23.1]} 35. Kc1 {[%clk 0:00:42.1]} 35... R8e3 {[%clk 0:01:19.3]} 36. Rxe2
{[%clk 0:00:33.9]} 36... Rxe2 {[%clk 0:01:19.5]} 37. Rd2 {[%clk 0:00:34.8]}
37... Rxd2 {[%clk 0:01:20]} 38. Kxd2 {[%clk 0:00:35.7]} 38... Be4 {[%clk
0:01:20.7]} 39. g4 {[%clk 0:00:27.2]} 39... hxg3 {[%clk 0:00:55.6]} 40. Ke3
{[%clk 0:00:27.3]} 40... c5 {[%clk 0:00:35.3]} 41. dxc5 {[%clk 0:00:13.9]} 41...
d4+ {[%clk 0:00:35.3]} 42. Ke2 {[%clk 0:00:04.3]} 42... d3+ {[%clk 0:00:35]} 43.
Ke3 {[%clk 0:00:04.3]} 43... g2 {[%clk 0:00:34.8]} 44. Kxe4 {[%clk 0:00:04.3]}
44... d2 {[%clk 0:00:33]} 45. Kd3 {[%clk 0:00:05.2]} 45... d1=Q+ {[%clk
0:00:32.4]} 0-1

[Event "Early-Titled-Tuesday-Blitz-October-10-2023"]
[Site "Chess.com"]
[Date "2023.10.10"]
[Round "4"]
[White "soumeow"]
[Black "feuervogel1000000"]
[Result "0-1"]
[WhiteElo "2292"]
[BlackElo "2503"]
[TimeControl "180+1"]
[EndTime "8:38:10 PDT"]
[Termination "feuervogel1000000 won by resignation"]

1. e4 {[%clk 0:02:59.5]} 1... c5 {[%clk 0:02:59.3]} 2. Nf3 {[%clk 0:02:59.1]}
2... d6 {[%clk 0:02:58.6]} 3. d4 {[%clk 0:02:59.3]} 3... cxd4 {[%clk 0:02:57.9]}
4. Nxd4 {[%clk 0:03:00.2]} 4... Nf6 {[%clk 0:02:57.7]} 5. Nc3 {[%clk 0:03:00.7]}
5... a6 {[%clk 0:02:58.2]} 6. h3 {[%clk 0:03:01]} 6... e5 {[%clk 0:02:56.6]} 7.
Nde2 {[%clk 0:03:01]} 7... h5 {[%clk 0:02:55.6]} 8. Bg5 {[%clk 0:02:59.7]} 8...
Be7 {[%clk 0:02:55.4]} 9. g3 {[%clk 0:02:22.7]} 9... Be6 {[%clk 0:02:53.7]} 10.
Bg2 {[%clk 0:02:21.7]} 10... Nbd7 {[%clk 0:02:53.1]} 11. a4 {[%clk 0:02:16.4]}
11... Rc8 {[%clk 0:02:50.4]} 12. O-O {[%clk 0:02:10.9]} 12... Qc7 {[%clk
0:02:32.2]} 13. b3 {[%clk 0:02:05.7]} 13... O-O {[%clk 0:02:05.9]} 14. Qd2
{[%clk 0:02:04]} 14... Rfe8 {[%clk 0:01:54.9]} 15. Kh1 {[%clk 0:01:45.4]} 15...
Qa5 {[%clk 0:01:46.9]} 16. f4 {[%clk 0:01:36.7]} 16... exf4 {[%clk 0:01:44.9]}
17. gxf4 {[%clk 0:01:37.6]} 17... Nf8 {[%clk 0:01:24.9]} 18. Rab1 {[%clk
0:00:55]} 18... N8h7 {[%clk 0:01:18.3]} 19. Bh4 {[%clk 0:00:53.6]} 19... Nxe4
{[%clk 0:01:16.4]} 20. Bxe4 {[%clk 0:00:54.5]} 20... Bxh4 {[%clk 0:01:14]} 21.
b4 {[%clk 0:00:24.9]} 21... Qc7 {[%clk 0:01:06.6]} 22. Nd5 {[%clk 0:00:20.9]}
22... Bxd5 {[%clk 0:01:03.9]} 23. Bxd5 {[%clk 0:00:21.8]} 23... Qxc2 {[%clk
0:01:01.7]} 24. Qxc2 {[%clk 0:00:22]} 24... Rxc2 {[%clk 0:01:01.4]} 25. Nd4
{[%clk 0:00:22.7]} 25... Rd2 {[%clk 0:01:01.1]} 26. Rbd1 {[%clk 0:00:22.8]}
26... Rxd1 {[%clk 0:00:56.3]} 27. Rxd1 {[%clk 0:00:23.7]} 27... Re7 {[%clk
0:00:50.5]} 28. Nf5 {[%clk 0:00:21.1]} 28... Re1+ {[%clk 0:00:51.1]} 29. Rxe1
{[%clk 0:00:20.6]} 29... Bxe1 {[%clk 0:00:52]} 30. Nxd6 {[%clk 0:00:20.3]} 30...
Bxb4 {[%clk 0:00:52.2]} 31. Nxb7 {[%clk 0:00:20.5]} 31... Nf6 {[%clk 0:00:50.8]}
32. Bc4 {[%clk 0:00:19.9]} 32... a5 {[%clk 0:00:50.8]} 33. Nd8 {[%clk
0:00:20.6]} 33... Kf8 {[%clk 0:00:49.3]} 34. Nxf7 {[%clk 0:00:20.4]} 34... Ke7
{[%clk 0:00:49.1]} 35. Ne5 {[%clk 0:00:20]} 35... Ne4 {[%clk 0:00:44.8]} 36. Kg2
{[%clk 0:00:18.6]} 36... Kf6 {[%clk 0:00:39.6]} 37. Bd3 {[%clk 0:00:11.5]} 37...
Nc5 {[%clk 0:00:38.3]} 38. Bc2 {[%clk 0:00:11.9]} 38... g5 {[%clk 0:00:35.9]}
39. Kf3 {[%clk 0:00:08.8]} 39... Ne6 {[%clk 0:00:36.1]} 40. Nd7+ {[%clk
0:00:07.9]} 40... Ke7 {[%clk 0:00:36]} 41. f5 {[%clk 0:00:07.9]} 41... Nd4+
{[%clk 0:00:36]} 42. Ke4 {[%clk 0:00:08.1]} 42... Nxc2 {[%clk 0:00:36.5]} 43.
Ne5 {[%clk 0:00:08.1]} 43... Kf6 {[%clk 0:00:32.9]} 44. Nf3 {[%clk 0:00:08.1]}
44... g4 {[%clk 0:00:32.9]} 45. hxg4 {[%clk 0:00:07.9]} 45... hxg4 {[%clk
0:00:33.8]} 46. Nh4 {[%clk 0:00:08.3]} 46... g3 {[%clk 0:00:33.9]} 47. Kf3
{[%clk 0:00:08.1]} 47... Bd6 {[%clk 0:00:34.5]} 48. Ng2 {[%clk 0:00:07.8]} 48...
Nd4+ {[%clk 0:00:34.6]} 49. Kg4 {[%clk 0:00:08.1]} 49... Nxf5 {[%clk 0:00:35.2]}
0-1

[Event "Early-Titled-Tuesday-Blitz-October-10-2023"]
[Site "Chess.com"]
[Date "2023.10.10"]
[Round "4"]
[White "play1ngtheangel"]
[Black "RobertoJBM"]
[Result "0-1"]
[WhiteElo "2644"]
[BlackElo "2827"]
[TimeControl "180+1"]
[EndTime "8:38:11 PDT"]
[Termination "RobertoJBM won by checkmate"]

1. e4 {[%clk 0:03:00.9]} 1... c6 {[%clk 0:02:58.8]} 2. Nf3 {[%clk 0:03:00.7]}
2... d5 {[%clk 0:02:59.7]} 3. Nc3 {[%clk 0:03:01]} 3... dxe4 {[%clk 0:02:59.8]}
4. Nxe4 {[%clk 0:03:01.9]} 4... Bg4 {[%clk 0:03:00.2]} 5. h3 {[%clk 0:03:01.4]}
5... Bxf3 {[%clk 0:03:00]} 6. Qxf3 {[%clk 0:03:02.3]} 6... Nd7 {[%clk
0:03:00.7]} 7. d4 {[%clk 0:03:00.4]} 7... Ndf6 {[%clk 0:03:00.8]} 8. c3 {[%clk
0:02:58.8]} 8... Nxe4 {[%clk 0:03:00.6]} 9. Qxe4 {[%clk 0:02:59.7]} 9... Nf6
{[%clk 0:03:01.2]} 10. Qc2 {[%clk 0:03:00.5]} 10... Qd5 {[%clk 0:03:00.6]} 11.
Bf4 {[%clk 0:02:54.9]} 11... e6 {[%clk 0:02:59.2]} 12. Rg1 {[%clk 0:02:40.9]}
12... Bd6 {[%clk 0:02:52.3]} 13. Bc4 {[%clk 0:02:25.9]} 13... Qxc4 {[%clk
0:02:31]} 14. Bxd6 {[%clk 0:02:23.5]} 14... O-O-O {[%clk 0:02:17.9]} 15. Be7
{[%clk 0:02:15.4]} 15... Rxd4 {[%clk 0:02:10.6]} 16. b3 {[%clk 0:01:46.2]} 16...
Re4+ {[%clk 0:02:09.3]} 17. Kd1 {[%clk 0:01:46.7]} 17... Qd5+ {[%clk 0:01:48.9]}
18. Kc1 {[%clk 0:01:46.2]} 18... Re8 {[%clk 0:01:43.1]} 19. Bxf6 {[%clk
0:01:44.2]} 19... gxf6 {[%clk 0:01:43.3]} 20. Kb2 {[%clk 0:01:40.4]} 20... Qe5
{[%clk 0:01:38.7]} 21. Rad1 {[%clk 0:01:33.9]} 21... Rd8 {[%clk 0:01:36.6]} 22.
Rxd8+ {[%clk 0:01:33.3]} 22... Kxd8 {[%clk 0:01:37.5]} 23. Rd1+ {[%clk
0:01:33.8]} 23... Kc7 {[%clk 0:01:32.1]} 24. Qd3 {[%clk 0:01:21.8]} 24... Re2+
{[%clk 0:01:03.6]} 25. Ka1 {[%clk 0:01:20.8]} 25... Kb6 {[%clk 0:01:02.6]} 26.
Qd8+ {[%clk 0:01:03.5]} 26... Ka6 {[%clk 0:00:59.8]} 27. Rd4 {[%clk 0:01:02.3]}
27... Re4 {[%clk 0:00:32.9]} 28. Rxe4 {[%clk 0:00:55.9]} 28... Qxe4 {[%clk
0:00:30.2]} 29. Qxf6 {[%clk 0:00:56.5]} 29... Qxg2 {[%clk 0:00:24.2]} 30. h4
{[%clk 0:00:51.8]} 30... Qg6 {[%clk 0:00:16.2]} 31. Qd4 {[%clk 0:00:49.2]} 31...
Qf5 {[%clk 0:00:14.6]} 32. a4 {[%clk 0:00:46.4]} 32... b6 {[%clk 0:00:10.8]} 33.
Kb2 {[%clk 0:00:43.8]} 33... Qd5 {[%clk 0:00:08.9]} 34. Qf6 {[%clk 0:00:42.5]}
34... Qd2+ {[%clk 0:00:07.3]} 35. Kb1 {[%clk 0:00:37.7]} 35... c5 {[%clk
0:00:06.1]} 36. Qxf7 {[%clk 0:00:27.1]} 36... Qxc3 {[%clk 0:00:04.2]} 37. Qxe6
{[%clk 0:00:25.6]} 37... Ka5 {[%clk 0:00:01.2]} 38. f4 {[%clk 0:00:16.4]} 38...
Kb4 {[%clk 0:00:01.7]} 39. Ka2 {[%clk 0:00:09]} 39... Qc2+ {[%clk 0:00:01.7]}
40. Ka1 {[%clk 0:00:09.6]} 40... Ka3 {[%clk 0:00:02.4]} 41. b4 {[%clk
0:00:08.2]} 41... Qb2# {[%clk 0:00:02.6]} 0-1

[Event "Early-Titled-Tuesday-Blitz-October-10-2023"]
[Site "Chess.com"]
[Date "2023.10.10"]
[Round "4"]
[White "ChessTankMan"]
[Black "carloseduar100"]
[Result "1-0"]
[WhiteElo "2517"]
[BlackElo "2330"]
[TimeControl "180+1"]
[EndTime "8:38:11 PDT"]
[Termination "ChessTankMan won by checkmate"]

1. e4 {[%clk 0:03:00.9]} 1... e6 {[%clk 0:03:00]} 2. Qe2 {[%clk 0:03:00.7]} 2...
d5 {[%clk 0:03:00.9]} 3. exd5 {[%clk 0:03:00.9]} 3... Qxd5 {[%clk 0:03:01.8]} 4.
Nc3 {[%clk 0:03:01.5]} 4... Qd8 {[%clk 0:03:02.7]} 5. Nf3 {[%clk 0:03:02.2]}
5... Nf6 {[%clk 0:03:03.6]} 6. d4 {[%clk 0:03:02.6]} 6... b6 {[%clk 0:03:04]} 7.
Bg5 {[%clk 0:03:02.4]} 7... Bb7 {[%clk 0:02:58.1]} 8. O-O-O {[%clk 0:03:00.6]}
8... Nbd7 {[%clk 0:02:58.4]} 9. d5 {[%clk 0:02:58.3]} 9... Qe7 {[%clk
0:02:35.9]} 10. Nb5 {[%clk 0:02:52.2]} 10... O-O-O {[%clk 0:02:26.8]} 11. Nxa7+
{[%clk 0:02:51.7]} 11... Kb8 {[%clk 0:02:27.1]} 12. Nc6+ {[%clk 0:02:51.9]}
12... Bxc6 {[%clk 0:02:27.6]} 13. dxc6 {[%clk 0:02:52.5]} 13... Nc5 {[%clk
0:02:16.3]} 14. Rxd8+ {[%clk 0:02:52.3]} 14... Qxd8 {[%clk 0:02:16.6]} 15. Ne5
{[%clk 0:02:52.9]} 15... Qd5 {[%clk 0:02:01.1]} 16. c4 {[%clk 0:02:46.5]} 16...
Qe4 {[%clk 0:01:57.5]} 17. Qxe4 {[%clk 0:02:45.1]} 17... Nfxe4 {[%clk
0:01:57.5]} 18. Be3 {[%clk 0:02:42.1]} 18... f6 {[%clk 0:01:56.8]} 19. Nf7
{[%clk 0:02:30.9]} 19... Rg8 {[%clk 0:01:56.2]} 20. f3 {[%clk 0:02:30.9]} 20...
Nd6 {[%clk 0:01:49.1]} 21. Nd8 {[%clk 0:02:28.1]} 21... Be7 {[%clk 0:01:40.5]}
22. Bxc5 {[%clk 0:02:27.8]} 22... Rxd8 {[%clk 0:01:40.9]} 23. Be3 {[%clk
0:02:26]} 23... Nf5 {[%clk 0:01:37.9]} 24. Bf2 {[%clk 0:02:24.6]} 24... Rd6
{[%clk 0:01:36]} 25. c5 {[%clk 0:02:18.5]} 25... Rxc6 {[%clk 0:01:35.2]} 26. Bb5
{[%clk 0:02:18.3]} 26... Rxc5+ {[%clk 0:01:24.4]} 27. Bxc5 {[%clk 0:02:17.7]}
27... Bxc5 {[%clk 0:01:25.2]} 28. Rd1 {[%clk 0:02:08.5]} 28... Nd4 {[%clk
0:01:22.3]} 29. Bc4 {[%clk 0:02:08.1]} 29... e5 {[%clk 0:01:21.5]} 30. a3 {[%clk
0:02:04.6]} 30... g5 {[%clk 0:01:19.2]} 31. h4 {[%clk 0:01:59.3]} 31... h6
{[%clk 0:01:18.8]} 32. hxg5 {[%clk 0:01:58.8]} 32... hxg5 {[%clk 0:01:19.1]} 33.
Rh1 {[%clk 0:01:58]} 33... c6 {[%clk 0:01:19.4]} 34. Rh7 {[%clk 0:01:55.3]}
34... Nf5 {[%clk 0:01:15.7]} 35. Rf7 {[%clk 0:01:49.9]} 35... Ne3 {[%clk
0:01:15.7]} 36. Bd3 {[%clk 0:01:49.3]} 36... Nxg2 {[%clk 0:01:13.6]} 37. Rxf6
{[%clk 0:01:49.7]} 37... Kc7 {[%clk 0:01:13.2]} 38. Be4 {[%clk 0:01:49.8]} 38...
Bd6 {[%clk 0:01:09.8]} 39. Rf7+ {[%clk 0:01:46.6]} 39... Kd8 {[%clk 0:01:06.8]}
40. Bxc6 {[%clk 0:01:46.5]} 40... Bc5 {[%clk 0:00:54.9]} 41. Be4 {[%clk
0:01:41.8]} 41... Bd4 {[%clk 0:00:53.8]} 42. Kc2 {[%clk 0:01:39.8]} 42... Ne3+
{[%clk 0:00:53.6]} 43. Kd3 {[%clk 0:01:40]} 43... Nd1 {[%clk 0:00:53.7]} 44. b4
{[%clk 0:01:25.3]} 44... g4 {[%clk 0:00:54.3]} 45. Rg7 {[%clk 0:01:15.5]} 45...
gxf3 {[%clk 0:00:49.6]} 46. Bxf3 {[%clk 0:01:14.4]} 46... Nb2+ {[%clk
0:00:43.4]} 47. Kc2 {[%clk 0:01:08.5]} 47... Nc4 {[%clk 0:00:43.4]} 48. Be4
{[%clk 0:00:48.6]} 48... Nxa3+ {[%clk 0:00:42.8]} 49. Kd3 {[%clk 0:00:48]} 49...
Nb5 {[%clk 0:00:41.5]} 50. Bc6 {[%clk 0:00:42.6]} 50... Nd6 {[%clk 0:00:41.6]}
51. Rd7+ {[%clk 0:00:41.9]} 51... Kc8 {[%clk 0:00:42.3]} 52. Rxd6 {[%clk
0:00:41.7]} 52... Kc7 {[%clk 0:00:43.2]} 53. Re6 {[%clk 0:00:39.6]} 53... Bb2
{[%clk 0:00:41.6]} 54. Kc4 {[%clk 0:00:38.7]} 54... Bd4 {[%clk 0:00:40]} 55. Kd5
{[%clk 0:00:38.9]} 55... Bb2 {[%clk 0:00:40]} 56. Re7+ {[%clk 0:00:39]} 56...
Kc8 {[%clk 0:00:40.1]} 57. Kd6 {[%clk 0:00:37.3]} 57... Kb8 {[%clk 0:00:38.8]}
58. Re8+ {[%clk 0:00:37.4]} 58... Ka7 {[%clk 0:00:38.6]} 59. Ra8# {[%clk
0:00:38.3]} 1-0

[Event "Early-Titled-Tuesday-Blitz-October-10-2023"]
[Site "Chess.com"]
[Date "2023.10.10"]
[Round "4"]
[White "Politov_Pavel"]
[Black "CraiggoryC"]
[Result "1/2-1/2"]
[WhiteElo "2045"]
[BlackElo "2259"]
[TimeControl "180+1"]
[EndTime "8:38:11 PDT"]
[Termination "Game drawn by repetition"]

1. e4 {[%clk 0:03:00.9]} 1... e6 {[%clk 0:02:50.6]} 2. d4 {[%clk 0:02:57.4]}
2... d5 {[%clk 0:02:50.5]} 3. Nc3 {[%clk 0:02:57.5]} 3... Bb4 {[%clk 0:02:50.2]}
4. e5 {[%clk 0:02:57.3]} 4... c5 {[%clk 0:02:50.7]} 5. a3 {[%clk 0:02:57.5]}
5... Bxc3+ {[%clk 0:02:51.4]} 6. bxc3 {[%clk 0:02:57.4]} 6... Ne7 {[%clk
0:02:51.6]} 7. Qg4 {[%clk 0:02:57.1]} 7... Qc7 {[%clk 0:02:52.1]} 8. Qxg7 {[%clk
0:02:56.1]} 8... Rg8 {[%clk 0:02:52.7]} 9. Qxh7 {[%clk 0:02:55.7]} 9... cxd4
{[%clk 0:02:53.4]} 10. Ne2 {[%clk 0:02:54.7]} 10... Nbc6 {[%clk 0:02:53.8]} 11.
f4 {[%clk 0:02:53.8]} 11... dxc3 {[%clk 0:02:52.6]} 12. h4 {[%clk 0:02:51.5]}
12... Bd7 {[%clk 0:02:48.7]} 13. h5 {[%clk 0:02:51.4]} 13... O-O-O {[%clk
0:02:48]} 14. Qd3 {[%clk 0:02:50.9]} 14... d4 {[%clk 0:02:47.9]} 15. Rg1 {[%clk
0:02:50]} 15... Kb8 {[%clk 0:02:30.6]} 16. g4 {[%clk 0:02:47.9]} 16... Bc8
{[%clk 0:02:29.9]} 17. Rb1 {[%clk 0:02:43]} 17... b6 {[%clk 0:02:27.6]} 18. g5
{[%clk 0:02:36.7]} 18... Nf5 {[%clk 0:02:09.3]} 19. Ng3 {[%clk 0:02:17.9]} 19...
Nxg3 {[%clk 0:02:02]} 20. Rxg3 {[%clk 0:02:00.5]} 20... Ne7 {[%clk 0:01:32]} 21.
Bh3 {[%clk 0:01:50.3]} 21... Nf5 {[%clk 0:01:05.8]} 22. Bxf5 {[%clk 0:01:45.1]}
22... exf5 {[%clk 0:01:06.7]} 23. a4 {[%clk 0:01:36.7]} 23... Be6 {[%clk
0:01:06]} 24. a5 {[%clk 0:01:29.6]} 24... Bc4 {[%clk 0:01:05.2]} 25. Qxf5 {[%clk
0:01:29]} 25... d3 {[%clk 0:01:05.3]} 26. cxd3 {[%clk 0:01:25]} 26... c2 {[%clk
0:01:02]} 27. dxc4 {[%clk 0:00:53.5]} 27... cxb1=Q {[%clk 0:00:55.1]} 28. Qxb1
{[%clk 0:00:52.5]} 28... Rd4 {[%clk 0:00:27.5]} 29. axb6 {[%clk 0:00:45]} 29...
axb6 {[%clk 0:00:27.9]} 30. Rb3 {[%clk 0:00:43.5]} 30... Rxc4 {[%clk 0:00:18.2]}
31. Rxb6+ {[%clk 0:00:39.7]} 31... Kc8 {[%clk 0:00:18.8]} 32. Qf5+ {[%clk
0:00:18.2]} 32... Kd8 {[%clk 0:00:17.1]} 33. Rd6+ {[%clk 0:00:11]} 33... Ke8
{[%clk 0:00:17.4]} 34. Bd2 {[%clk 0:00:07.3]} 34... Rc1+ {[%clk 0:00:03]} 35.
Bxc1 {[%clk 0:00:06.6]} 35... Qxc1+ {[%clk 0:00:03.9]} 36. Rd1 {[%clk
0:00:05.8]} 36... Qe3+ {[%clk 0:00:04]} 37. Kf1 {[%clk 0:00:05.6]} 37... Qf3+
{[%clk 0:00:04.4]} 38. Ke1 {[%clk 0:00:05.3]} 38... Qe3+ {[%clk 0:00:05]} 39.
Kf1 {[%clk 0:00:05.1]} 39... Qf3+ {[%clk 0:00:05.5]} 40. Ke1 {[%clk 0:00:05.5]}
40... Qe3+ {[%clk 0:00:06.1]} 1/2-1/2

[Event "Early-Titled-Tuesday-Blitz-October-10-2023"]
[Site "Chess.com"]
[Date "2023.10.10"]
[Round "4"]
[White "lluiss"]
[Black "szachmistrz2500"]
[Result "1-0"]
[WhiteElo "2190"]
[BlackElo "2432"]
[TimeControl "180+1"]
[EndTime "8:38:12 PDT"]
[Termination "lluiss won by resignation"]

1. Nf3 {[%clk 0:03:00.9]} 1... c5 {[%clk 0:02:58.6]} 2. c4 {[%clk 0:02:59.2]}
2... g6 {[%clk 0:02:57.2]} 3. d4 {[%clk 0:02:58.4]} 3... Bg7 {[%clk 0:02:53]} 4.
e4 {[%clk 0:02:58.3]} 4... cxd4 {[%clk 0:02:51.7]} 5. Nxd4 {[%clk 0:02:57.8]}
5... Nc6 {[%clk 0:02:51.7]} 6. Be3 {[%clk 0:02:57.7]} 6... Nf6 {[%clk
0:02:51.1]} 7. Nc3 {[%clk 0:02:56.7]} 7... d6 {[%clk 0:02:51.1]} 8. Be2 {[%clk
0:02:56.2]} 8... O-O {[%clk 0:02:50.3]} 9. O-O {[%clk 0:02:55.8]} 9... Nxd4
{[%clk 0:02:50.3]} 10. Bxd4 {[%clk 0:02:55.2]} 10... Be6 {[%clk 0:02:48]} 11. f3
{[%clk 0:02:41.7]} 11... a6 {[%clk 0:02:46.6]} 12. Qd2 {[%clk 0:02:32.7]} 12...
Rc8 {[%clk 0:02:46]} 13. b3 {[%clk 0:02:31.4]} 13... Nd7 {[%clk 0:02:45.9]} 14.
Bxg7 {[%clk 0:02:18]} 14... Kxg7 {[%clk 0:02:46.8]} 15. Qd4+ {[%clk 0:02:16.8]}
15... f6 {[%clk 0:02:46.1]} 16. b4 {[%clk 0:02:16.6]} 16... Ne5 {[%clk
0:02:37.4]} 17. Nd5 {[%clk 0:02:14.6]} 17... Nc6 {[%clk 0:02:28.7]} 18. Qf2
{[%clk 0:01:43.6]} 18... Bxd5 {[%clk 0:02:25.7]} 19. cxd5 {[%clk 0:01:43]} 19...
Nxb4 {[%clk 0:02:25.4]} 20. Rab1 {[%clk 0:01:41]} 20... Nxa2 {[%clk 0:02:17.4]}
21. Rxb7 {[%clk 0:01:29.1]} 21... Rc2 {[%clk 0:02:14.8]} 22. Qe3 {[%clk
0:01:23.3]} 22... Kf7 {[%clk 0:02:05.3]} 23. Ra1 {[%clk 0:01:11.9]} 23... Qc8
{[%clk 0:02:02.3]} 24. Bxa6 {[%clk 0:01:10]} 24... Rc1+ {[%clk 0:01:55.6]} 25.
Rxc1 {[%clk 0:01:09]} 25... Qxc1+ {[%clk 0:01:55.2]} 26. Qxc1 {[%clk 0:01:07.1]}
26... Nxc1 {[%clk 0:01:56.1]} 27. Rb1 {[%clk 0:00:57.2]} 27... Nd3 {[%clk
0:01:51.6]} 28. Bxd3 {[%clk 0:00:56]} 28... Rc8 {[%clk 0:01:42.1]} 29. Rb2
{[%clk 0:00:54.7]} 29... Rc3 {[%clk 0:01:41.9]} 30. Be2 {[%clk 0:00:54]} 30...
Ra3 {[%clk 0:01:42]} 31. Kf2 {[%clk 0:00:54]} 31... h5 {[%clk 0:01:42.8]} 32. h4
{[%clk 0:00:53.3]} 32... g5 {[%clk 0:01:42.4]} 33. hxg5 {[%clk 0:00:52.1]} 33...
fxg5 {[%clk 0:01:43.3]} 34. Rb8 {[%clk 0:00:51.4]} 34... Kf6 {[%clk 0:01:42.9]}
35. Rh8 {[%clk 0:00:50.3]} 35... h4 {[%clk 0:01:42.8]} 36. Rh6+ {[%clk 0:00:50]}
36... Kf7 {[%clk 0:01:41.9]} 37. Re6 {[%clk 0:00:49.2]} 37... Rb3 {[%clk
0:01:40.1]} 38. e5 {[%clk 0:00:49.3]} 38... dxe5 {[%clk 0:01:38.2]} 39. Rxe5
{[%clk 0:00:49.4]} 39... Kf6 {[%clk 0:01:38.5]} 40. Re3 {[%clk 0:00:46]} 40...
Rb2 {[%clk 0:01:38.3]} 41. Re6+ {[%clk 0:00:44.6]} 41... Kf7 {[%clk 0:01:38.1]}
42. Ke3 {[%clk 0:00:42.7]} 42... Ra2 {[%clk 0:01:33.7]} 43. Kd4 {[%clk
0:00:41.8]} 43... Rb2 {[%clk 0:01:26.8]} 44. Re5 {[%clk 0:00:41.8]} 44... Kf6
{[%clk 0:01:26.3]} 45. Re4 {[%clk 0:00:36.1]} 45... Rb4+ {[%clk 0:01:21.9]} 46.
Ke3 {[%clk 0:00:34.8]} 46... Rb2 {[%clk 0:01:21]} 47. Kf2 {[%clk 0:00:32.7]}
47... Ra2 {[%clk 0:01:20.6]} 48. Re6+ {[%clk 0:00:32.8]} 48... Kf7 {[%clk
0:01:20.2]} 49. Rb6 {[%clk 0:00:32.3]} 49... Rd2 {[%clk 0:01:19.1]} 50. Rb5
{[%clk 0:00:32.1]} 50... Kf6 {[%clk 0:01:17.7]} 51. Ke3 {[%clk 0:00:32]} 51...
Ra2 {[%clk 0:01:17.3]} 52. Kf2 {[%clk 0:00:25.4]} 52... Rc2 {[%clk 0:01:16.7]}
53. Ra5 {[%clk 0:00:23]} 53... Rb2 {[%clk 0:01:16.5]} 54. Ke3 {[%clk 0:00:23.2]}
54... Rc2 {[%clk 0:01:15.5]} 55. Ra1 {[%clk 0:00:22.1]} 55... Rb2 {[%clk
0:01:15.3]} 56. Rg1 {[%clk 0:00:20.2]} 56... Ke5 {[%clk 0:01:13.6]} 57. g3
{[%clk 0:00:19.6]} 57... hxg3 {[%clk 0:01:05.9]} 58. Rxg3 {[%clk 0:00:19.5]}
58... Kxd5 {[%clk 0:01:03]} 59. Rxg5+ {[%clk 0:00:19.3]} 59... Ke6 {[%clk
0:01:03.4]} 60. Rg4 {[%clk 0:00:19.3]} 60... Rb3+ {[%clk 0:01:03]} 61. Bd3
{[%clk 0:00:19.3]} 61... Kf6 {[%clk 0:01:02.8]} 62. Re4 {[%clk 0:00:20.2]} 62...
e5 {[%clk 0:01:02.6]} 63. Rc4 {[%clk 0:00:19.4]} 63... Rb6 {[%clk 0:01:02.4]}
64. Rc3 {[%clk 0:00:19.1]} 64... Rd6 {[%clk 0:01:01.7]} 65. Ra3 {[%clk
0:00:18.9]} 65... Rb6 {[%clk 0:01:01.5]} 66. Ra6 {[%clk 0:00:19]} 66... Rxa6
{[%clk 0:00:59.9]} 67. Bxa6 {[%clk 0:00:19.9]} 67... Kf5 {[%clk 0:01:00.2]} 68.
Bd3+ {[%clk 0:00:20.2]} 68... Kf6 {[%clk 0:01:00]} 69. Ke4 {[%clk 0:00:20.7]}
69... Ke6 {[%clk 0:01:00.4]} 70. Bc4+ {[%clk 0:00:21.6]} 70... Kd6 {[%clk
0:01:00.6]} 71. Bf7 {[%clk 0:00:22.1]} 1-0